[Event "Slovakian ECo-C Extraliga 2024-25"]
[Site "Slovakia"]
[Date "2025.01.19"]
[Round "4.6"]
[White "Plachetka, Jan"]
[Black "Striskova, Lucia"]
[Result "1/2-1/2"]
[Annotator "TA"]
[ECO "D61"]
[WhiteElo "2278"]
[BlackElo "2074"]
[PlyCount "95"]
[EventDate "2024.09.12"]
[EventType "team-tourn"]
[EventCountry "SVK"]
[SourceTitle "playchess.com"]
[Source "ChessBase"]
[SourceQuality "1"]
[TimeControl "5400+30"]

{[%evp 16,95,35,23,41,39,44,43,57,51,47,0,28,17,29,35,24,0,0,0,0,0,0,-36,-40,-42,-50,-47,-27,-41,-50,-81,-74,-101,-101,-109,-109,-109,-110,-112,-122,-370,-216,-641,-633,-633,-71,-78,-77,-78,-74,-83,-84,-85,-88,-85,-84,-73,0,0,0,0,0,0,0,0,0,0,0,0,0,0,0,0,0,0,0,0,0,0,0,0]} 1. d4 {[%emt 0:00:51]} Nf6 {[%emt 0:01:02]} 2. Nf3 {[%emt 0:00:13]} d5 {[%emt 0:00:32]} 3. c4 {[%emt 0:00:18]} e6 {[%emt 0:00:07]} 4. Nc3 {[%emt 0:00:17]} Be7 {[%emt 0:00:22]} 5. Bg5 {[%emt 0:00:26]} O-O {[%emt 0:00:11]} 6. e3 {[%emt 0:00:06]} Nbd7 {[%emt 0:00:28]} 7. Qc2 {[%emt 0:00:34]} b6 {[%emt 0:02:12]} 8. cxd5 {[%emt 0:00:56]} exd5 {[%emt 0:00:26]} 9. Bd3 {[%emt 0:01:17]} c5 {[%emt 0:06:02]} 10. O-O {[%emt 0:03:13]} h6 {[%emt 0:03:26]} 11. Bh4 {[%emt 0:01:50]} Re8 {[%emt 0:00:36]} 12. Rad1 {[%emt 0:01:29]} Bb7 {[%emt 0:00:40]} 13. Ne5 {[%emt 0:01:43]} (13. Bf5 $14 {feels stronger.}) 13... Nxe5 {[%emt 0:09:04]} 14. dxe5 {[%emt 0:00:36]} Ng4 {[%emt 0:00:21][%csl LRe5,LRh4]} 15. Bg3 {[%emt 0:00:33]} Bh4 $1 {[%emt 0:08:01]} 16. Bh7+ {[%emt 0:27:51]} Kh8 {[%emt 0:03:20]} 17. Bf5 {[%emt 0:05:28]} Bxg3 {[%emt 0:05:53]} 18. hxg3 {[%emt 0:01:29]} Nxe5 {[%emt 0:00:59]} 19. Nxd5 {[%emt 0:01:17]} Bxd5 {[%emt 0:13:38]} 20. e4 {[%emt 0:00:11] [#]} Nc6 $1 {[%emt 0:00:16]} 21. Rxd5 {[%emt 0:01:13]} Qf6 {[%emt 0:00:17]} 22. Bd7 {[%emt 0:17:28][%cal Oc2a4]} Nd4 {[%emt 0:03:13]} 23. Rxd4 {[%emt 0:01:37]} Qxd4 {[%emt 0:00:08]} 24. Bxe8 {[%emt 0:00:06]} Rxe8 $15 {[%emt 0:00:10][%mdl 4096] Endgame KQR-KQR} 25. Re1 {[%emt 0:06:08]} f5 {[%emt 0:00:49]} 26. Kf1 {[%emt 0:04:23]} Rxe4 {[%emt 0:01:21]} 27. Rxe4 {[%emt 0:00:23]} fxe4 $17 {[%emt 0:00:29] KQ-KQ. Black is a pawn up.} (27... Qxe4 $6 28. Qxe4 fxe4 29. Ke2 $11) 28. b3 $2 {[%emt 0:01:15]} (28. Kg1 $17) 28... b5 {[%emt 0:01:00]} (28... Qd3+ $142 29. Qxd3 exd3) 29. f3 $2 {[%emt 0:02:31]} (29. Kg1) 29... Qd3+ $19 {[%emt 0:20:27]} 30. Qe2 {[%emt 0:00:23]} c4 $2 {[%emt 0:00:40]} (30... Qxe2+ $19 31. Kxe2 exf3+ 32. Kxf3 Kh7) 31. bxc4 $17 {[%emt 0:00:34]} bxc4 {[%emt 0:00:06] ...c3 would now be deadly.} 32. fxe4 {[%emt 0:00:17] Strongly threatening Qxd3.} Qb1+ {[%emt 0:00:21]} ({Much weaker is} 32... Qxg3 33. Qxc4 Qg5 34. Kf2 $11) 33. Kf2 {[%emt 0:01:08]} c3 {[%emt 0:00:40] ( -> ...c2)} 34. Qc4 {[%emt 0:00:48] [#]} Qc2+ $1 {[%emt 0:01:17]} 35. Kf3 {[%emt 0:01:54]} Qd1+ {[%emt 0:00:16]} 36. Kf2 {[%emt 0:05:26] [#]} c2 {[%emt 0:02:21]} (36... Qd2+ $1 $17 37. Kf3 Kh7) 37. Qc8+ $11 {[%emt 0:00:36]} Kh7 {[%emt 0:00:04]} 38. Qf5+ {[%emt 0:00:10]} Kg8 {[%emt 0:00:10]} 39. Qe6+ {[%emt 0:01:26]} Kf8 {[%emt 0:01:01] ( -> ...Qd4+)} 40. Qf5+ {[%emt 0:01:13]} Ke8 {[%emt 0:03:52]} 41. Qe5+ {[%emt 0:05:44]} Kd7 {[%emt 0:00:10]} (41... Kf7 $5 42. Qf5+ $8 Ke7 (42... Kg8 43. Qc8+ Kf7 44. Qf5+ Ke7 45. Qc5+ Kd7 46. Qb5+ Ke6 47. Qe8+ Kd6 48. Qb8+ Kd7 49. Qb5+ Ke6 50. Qe8+ Kf6 51. Qf8+ Ke6 52. Qg8+ Kf6 53. Qf8+ Ke5 54. Qe7+ Kd4 55. Qxa7+ Kd3 56. Qa3+ Kc4 57. Qb3+ Kc5 58. Qc3+ Kd6 59. Qb4+ Kd7 60. Qb5+ Kd6 61. Qb4+ Ke6 62. Qc4+ Ke7 63. Qc7+ Kf6 64. Qf4+ Ke6 65. Qf5+ Kd6 66. Qf8+ Kd7 67. Qxg7+ Kc6 68. Qc3+ Kb6 69. Qb4+ Kc6 70. Qc3+ Kd7 71. Qg7+ Kc6 72. Qc3+ $11) 43. Qc5+ Kd8 44. Qa5+ Kd7 45. Qf5+ Kd6 46. Qf8+ Kc6 47. Qc8+ Kb6 48. Qb8+ Ka6 49. Qc8+ Kb6 $11) 42. Qxg7+ {[%emt 0:00:57]} Kc6 {[%emt 0:00:55]} 43. Qc3+ $1 {[%emt 0:00:40]} Kb7 {[%emt 0:01:25]} 44. Qb4+ {[%emt 0:00:52]} Kc7 {[%emt 0:00:28]} 45. Qc5+ {[%emt 0:00:31]} Kb7 {[%emt 0:00:05]} 46. Qb4+ {[%emt 0:00:13]} Kc7 {[%emt 0:00:06]} 47. Qc5+ {[%emt 0:00:15]} Kb7 {[%emt 0:00:07]} 48. Qb5+ {[%emt 0:01:00]} 1/2-1/2

[Event "Slovakian ECo-C Extraliga 2024-25"]
[Site "Slovakia"]
[Date "2025.01.19"]
[Round "4.6"]
[White "Briestensky, Rastislav"]
[Black "Vojtek, Vladimir"]
[Result "*"]
[Annotator "TA"]
[ECO "C46"]
[WhiteElo "2251"]
[BlackElo "2245"]
[PlyCount "25"]
[EventDate "2024.09.12"]
[EventType "team-tourn"]
[EventCountry "SVK"]
[SourceTitle "playchess.com"]
[Source "ChessBase"]
[SourceQuality "1"]
[TimeControl "5400+30"]

{[%evp 4,9,9,19,37,20,26,27]} 1. e4 {[%emt 0:00:07]} e5 {[%emt 0:00:07]} 2. Nc3 {[%emt 0:00:09]} Nc6 {[%emt 0:00:06]} 3. Nf3 {[%emt 0:00:11]} d6 {[%emt 0:00:06] C42: Petroff Defence: 3 Nxe5 and unusual White 3rd moves.} 4. h3 {[%emt 0:00:40]} Nf6 {[%emt 0:04:50]} 5. d4 {[%emt 0:01:39] A rather calm draw.} Bd7 $146 6. g4 h6 7. Bg2 Be7 8. Be3 a6 9. a4 b6 10. Qd2 Rb8 11. d5 Na5 12. Bf1 Ra8 13. Bd3 {0-1 Vallejo Pons,F (2710)-Radjabov,T (2747) Krasnogorsk Blitz 2023 (11)} *

[Event "Slovakian ECo-C Extraliga 2024-25"]
[Site "Slovakia"]
[Date "2025.01.19"]
[Round "4.6"]
[White "Vojtek, Vladimir"]
[Black "Briestensky, Rastislav"]
[Result "1/2-1/2"]
[Annotator "TA"]
[ECO "C46"]
[WhiteElo "2245"]
[BlackElo "2251"]
[PlyCount "92"]
[EventDate "2024.09.12"]
[EventType "team-tourn"]
[EventCountry "SVK"]
[SourceTitle "playchess.com"]
[Source "ChessBase"]
[SourceQuality "1"]
[TimeControl "5400+30"]

{[%evp 9,92,27,25,23,18,-2,28,35,38,30,58,8,41,-4,0,6,29,28,52,65,88,79,118,96,122,110,169,-12,-14,0,-7,-125,-22,-29,-36,-177,-52,-38,-25,-48,-62,-60,-72,-128,-62,-126,-135,-147,-137,-154,-76,-81,-68,-90,-93,-257,-275,-296,-284,-591,-594,-646,-606,-770,-497,-587,-580,-589,-488,-337,0,0,0,0,0,0,0,-1489,0,0,0,0,0,0,0]} 1. e4 {[%emt 0:00:07]} e5 {[%emt 0:00:07]} 2. Nc3 {[%emt 0:00:09]} Nc6 {[%emt 0:00:06]} 3. Nf3 {[%emt 0:00:11]} d6 {[%emt 0:00:06]} 4. h3 {[%emt 0:00:40]} Nf6 {[%emt 0:04:50]} 5. d4 {[%emt 0:01:39]} Be7 {[%emt 0:01:24]} 6. Be2 {[%emt 0:14:31]} O-O {[%emt 0:00:38]} 7. Be3 {[%emt 0:00:27]} a6 {[%emt 0:09:23]} 8. d5 {[%emt 0:05:09]} Nb8 {[%emt 0:00:14]} 9. g4 {[%emt 0:00:05]} c5 {[%emt 0:14:28]} 10. dxc6 {[%emt 0:08:15]} (10. a4 $14) 10... bxc6 $11 {[%emt 0:00:39]} 11. g5 {[%emt 0:01:43]} Ne8 {[%emt 0:00:37][%cal Bf6e8,Be8c7,Bc7b5,Bb5c3][%mdl 32]} 12. Qd2 {[%emt 0:02:42]} Nc7 {[%emt 0:12:08]} 13. O-O-O {[%emt 0:05:46]} Nb5 {[%emt 0:04:10]} 14. a4 {[%emt 0:15:38]} Nxc3 {[%emt 0:00:53]} 15. Qxc3 {[%emt 0:00:09]} Be6 {[%emt 0:05:35]} 16. h4 {[%emt 0:16:26][%cal Bh3h4,Bh4h5][%mdl 32]} Qe8 {[%emt 0:09:22]} 17. h5 {[%emt 0:02:26] White has more active pieces. The black rooks are passive.} c5 {[%emt 0:00:05]} (17... Nd7 $16) 18. Nh4 $2 {[%emt 0:10:01]} ({White should play} 18. h6 $1 $18 {[%cal Rh6g7] Threatens to win with hxg7.} Qxa4 19. hxg7 Kxg7 20. b3 Qa3+ 21. Kb1) 18... Nc6 {[%emt 0:05:10]} 19. Nf5 {[%emt 0:01:25]} Nd4 {[%emt 0:00:12]} 20. Bg4 {[%emt 0:05:00]} (20. Bd3 $1 $11 {remains equal.}) 20... Bxf5 {[%emt 0:03:27]} (20... Qxa4 21. Nxe7+ Kh8 22. Bxd4 cxd4 23. Qg3 Qa1+ (23... Bxg4 24. Qxg4 Qa1+ 25. Kd2 $16) 24. Kd2 Qa5+ 25. c3 $14) (20... d5 $17 21. Qa3 Bxf5 22. exf5 c4) 21. exf5 {[%emt 0:00:16]} Qxa4 {[%emt 0:00:30]} 22. f6 {[%emt 0:05:18]} (22. b3 $15 Qa3+ (22... Nxb3+ 23. Qxb3 Qxg4 24. f6 $11) 23. Qb2 Qxb2+ 24. Kxb2) 22... Nb5 {[%emt 0:00:51]} (22... gxf6 $19 23. gxf6 Bxf6) 23. Qd3 {[%emt 0:01:42]} Qxg4 {[%emt 0:03:03]} 24. fxe7 {[%emt 0:00:36]} Rfe8 {[%emt 0:00:35]} 25. g6 $1 {[%emt 0:00:40]} Qe6 {[%emt 0:01:25]} 26. Rdg1 {[%emt 0:00:49]} (26. gxh7+ Kh8 $18) (26. gxf7+ $142 Qxf7 27. Qe4 (27. h6 g6 $11)) 26... e4 {[%emt 0:11:24]} (26... Qxe7 $2 27. gxf7+ (27. gxh7+ Kh8 $11) 27... Qxf7 28. Bh6 $18) (26... Rxe7 $17 27. gxh7+ Kh8) 27. gxf7+ {[%emt 0:00:32]} (27. gxh7+ Kxh7 28. Qe2 Rxe7 $19 (28... Qxe7 29. Rg6 $17)) (27. Qf1 $1 $15) 27... Kxf7 $17 {[%emt 0:00:05]} 28. Qe2 {[%emt 0:00:11]} Rxe7 {[%emt 0:00:13]} (28... Qxe7 29. Rg4 Qe6 30. Rhg1 $16) 29. Rh4 {[%emt 0:00:36]} Nd4 {[%emt 0:01:08]} ({Black should play} 29... Kg8 {and ...Qa2 would now be decisive} 30. h6 g6) 30. Bxd4 {[%emt 0:01:20]} cxd4 {[%emt 0:00:10]} 31. h6 {[%emt 0:00:32]} g6 {[%emt 0:00:14][%cal Od4d3]} (31... gxh6 $2 32. Qh5+ Kf8 33. Rf4+ Rf7 34. Rxf7+ Qxf7 35. Qxh6+ Ke8 36. Rg7 $18 (36. Qxd6 d3 $18)) 32. Rgg4 $2 {[%emt 0:00:42]} (32. f3 $17 {keeps fighting.} e3 (32... d5 33. fxe4 Kg8 34. e5 $15) 33. Rxd4) 32... d5 $19 {[%emt 0:01:15]} 33. f3 {[%emt 0:00:07]} d3 {[%emt 0:04:12]} 34. Qe3 $2 {[%emt 0:00:28]} (34. cxd3 e3 35. Kb1) 34... Rc8 {[%emt 0:00:51]} 35. c3 {[%emt 0:00:19]} Rc4 {[%emt 0:01:09]} 36. Qf4+ {[%emt 0:00:38]} Qf6 {[%emt 0:00:33]} 37. Qb8 {[%emt 0:01:04]} g5 $1 {[%emt 0:03:44][%cal Oe4f3] Dodges Rf4} (37... Qxf3 $2 38. Rf4+ Ke6 39. Rxf3 exf3 40. Rh3 $18 (40. Qg8+ Rf7 $18)) 38. Rf4 {[%emt 0:00:25]} gxf4 {[%emt 0:00:14]} 39. Rxf4 {[%emt 0:00:00] [#]} e3 $2 {[%emt 0:00:23]} 40. Rxf6+ $11 {[%emt 0:00:06]} Kxf6 {[%emt 0:00:33][%mdl 4096] Endgame KQ-KRR} 41. Qf8+ {[%emt 0:01:36]} Ke6 {[%emt 0:01:34]} 42. Qg8+ {[%emt 0:00:00]} Ke5 {[%emt 0:00:00]} 43. Qh8+ $2 {[%emt 0:00:00][%mdl 8192] [#]} (43. Qg5+ $11 Kd6 44. Qf6+ Kd7 (44... Re6 45. Qd8+ Ke5 46. Qg5+ Kd6 47. Qd8+ Ke5 48. Qg5+ Kd6 49. Qd8+ $11) 45. Qf5+ Kc7 46. Qf6) 43... Ke6 $2 {[%emt 0:00:00]} (43... Kf4 $1 $19 {[%cal Rf4g3] ( -> ...Kg3!)} 44. Qf6+ Kg3 45. Qxe7 Kf2) 44. Qg8+ {[%emt 0:00:00]} Kd6 {[%emt 0:00:00]} 45. Qd8+ $1 {[%emt 0:00:00]} Ke6 {[%emt 0:00:00]} 46. Qg8+ Ke5 1/2-1/2

[Event "Slovakian ECo-C Extraliga 2024-25"]
[Site "Slovakia"]
[Date "2025.01.19"]
[Round "4.6"]
[White "Kantorik, Marian"]
[Black "Schwarz, Dusan"]
[Result "0-1"]
[Annotator "TA"]
[ECO "D45"]
[WhiteElo "2171"]
[BlackElo "2264"]
[PlyCount "96"]
[EventDate "2024.09.12"]
[EventType "team-tourn"]
[EventCountry "SVK"]
[SourceTitle "playchess.com"]
[Source "ChessBase"]
[SourceQuality "1"]
[TimeControl "5400+30"]

{[%evp 15,96,23,22,27,20,27,26,14,11,8,21,-12,26,0,-27,-26,-34,-49,0,0,0,0,8,8,25,0,13,0,0,0,0,0,0,-33,-30,-35,-16,-62,-40,-81,-33,-95,-81,-80,-67,-106,0,-70,-60,-53,-54,-56,-52,-63,-61,-297,-291,-296,-289,-297,-309,-472,-443,-442,-330,-299,-256,-353,-339,-603,-595,-570,-427,-454,-460,-568,-518,-552,-379,-313,-346,-447,-432]} 1. d4 {[%emt 0:00:04]} d5 {[%emt 0:00:06]} 2. c4 {[%emt 0:00:18]} c6 {[%emt 0:00:08]} 3. Nf3 {[%emt 0:00:15]} Nf6 {[%emt 0:00:07]} 4. Nc3 {[%emt 0:00:18]} e6 {[%emt 0:00:14]} 5. e3 {[%emt 0:01:35]} Nbd7 {[%emt 0:00:06]} 6. Qc2 {[%emt 0:00:16]} Bd6 {[%emt 0:00:22]} 7. g4 {[%emt 0:00:20]} Bb4 {[%emt 0:00:42]} 8. Bd2 {[%emt 0:00:12]} Qe7 {[%emt 0:00:24]} 9. Rg1 {[%emt 0:00:25]} Bxc3 {[%emt 0:02:13]} 10. Bxc3 {[%emt 0:01:42]} Ne4 {[%emt 0:00:28]} 11. Bd3 {[%emt 0:02:55]} Nxc3 {[%emt 0:00:28]} 12. Qxc3 {[%emt 0:00:05]} dxc4 {[%emt 0:01:44]} 13. Bxc4 {[%emt 0:01:33]} b6 {[%emt 0:03:53]} 14. O-O-O {[%emt 0:05:52]} (14. d5 $142 exd5 15. Qxg7 Qb4+ 16. Kd1) 14... O-O $11 {[%emt 0:04:29]} 15. Kb1 {[%emt 0:00:26]} Bb7 {[%emt 0:02:02]} 16. g5 {[%emt 0:07:18]} Rfd8 {[%emt 0:04:39]} (16... c5 $15 17. Nd2 cxd4 18. exd4 Qd6) 17. e4 {[%emt 0:09:27]} a5 {[%emt 0:14:40]} 18. Qe3 {[%emt 0:04:51]} c5 {[%emt 0:11:51]} 19. d5 {[%emt 0:02:11]} exd5 {[%emt 0:06:32]} 20. Bxd5 {[%emt 0:00:13]} Nf8 {[%emt 0:01:00]} 21. h4 {[%emt 0:16:54][%cal Of3e5]} Bxd5 {[%emt 0:05:35]} 22. exd5 {[%emt 0:04:50]} Qxe3 {[%emt 0:00:24]} 23. fxe3 {[%emt 0:00:06]} Re8 $1 {[%emt 0:01:24]} 24. Rd3 {[%emt 0:01:52]} Re4 {[%emt 0:03:38]} 25. h5 {[%emt 0:05:47]} Rae8 {[%emt 0:01:08]} 26. Re1 {[%emt 0:00:48]} (26. Nd2 $11 Rh4 (26... Rxe3 27. Rxe3 Rxe3 28. Nc4 $11) 27. h6) 26... Nd7 $15 {[%emt 0:01:02]} 27. d6 {[%emt 0:03:22]} g6 {[%emt 0:11:12]} (27... Rg4 $17) 28. h6 {[%emt 0:02:51]} ({White should try} 28. hxg6 $15 hxg6 29. Kc2) 28... R8e6 {[%emt 0:01:20]} 29. b3 {[%emt 0:03:14]} Rg4 {[%emt 0:06:02]} 30. Rg1 {[%emt 0:02:13]} Rge4 {[%emt 0:02:07]} 31. Re1 {[%emt 0:00:06]} f5 {[%emt 0:02:24]} 32. gxf6 {[%emt 0:04:58]} Rxf6 {[%emt 0:00:11]} 33. Nd2 {[%emt 0:02:27]} Rh4 {[%emt 0:03:34]} 34. Nc4 {[%emt 0:00:42]} Rxh6 {[%emt 0:00:55]} 35. Nxb6 $2 {[%emt 0:00:58]} Nxb6 $19 {[%emt 0:00:09]} 36. d7 {[%emt 0:00:04] [#]} Nxd7 $1 {[%emt 0:00:06]} 37. Rxd7 {[%emt 0:00:03][%mdl 4096] Endgame KRR-KRR. Black is a pawn up.} Rh2 {[%emt 0:01:31] Against Re2} 38. Ra7 {[%emt 0:05:07]} (38. e4 $142 Rff2 39. Rd8+ Kf7 40. e5) 38... h5 {[%emt 0:04:45]} 39. e4 {[%emt 0:02:32]} Rf7 {[%emt 0:03:46]} 40. Rxa5 {[%emt 0:00:20]} h4 {[%emt 0:00:51]} 41. e5 {[%emt 0:01:20][%cal Oe5e6] [#]} Rff2 $1 {[%emt 0:00:00]} 42. Ra7 $2 {[%emt 0:00:00]} (42. e6 Re2 43. Rd1) 42... Rb2+ {[%emt 0:00:00]} 43. Ka1 {[%emt 0:00:00]} Rbe2 {[%emt 0:00:00]} 44. Rd1 {[%emt 0:00:00]} Rd2 {[%emt 0:00:00]} ({Not} 44... Rxe5 45. Rd8+) 45. Re1 {[%emt 0:00:00]} Rhe2 {[%emt 0:00:00]} 46. Rg1 {[%emt 0:00:00]} Kf8 {[%emt 0:00:00]} (46... Rxe5 $2 47. Rxg6+ Kf8 48. Ra8+ Kf7 49. Rg1 $19) 47. Ra8+ {[%emt 0:00:00]} Kg7 {[%emt 0:00:00][%cal Oh4h3] White must now prevent ...h3!.} 48. Ra6 {[%emt 0:00:00]} Rg2 {[%emt 0:00:00]} ({Less strong is} 48... Rxe5 49. Raxg6+ Kf8 50. Rh6 $11) 0-1

[Event "Slovakian ECo-C Extraliga 2024-25"]
[Site "Slovakia"]
[Date "2025.01.19"]
[Round "4.7"]
[White "Farkas Gabor"]
[Black "Pacher, Milan"]
[Result "1/2-1/2"]
[Annotator "TA"]
[ECO "D02"]
[WhiteElo "2323"]
[BlackElo "2317"]
[PlyCount "74"]
[EventDate "2024.09.12"]
[EventType "team-tourn"]
[EventCountry "SVK"]
[SourceTitle "playchess.com"]
[Source "ChessBase"]
[SourceQuality "1"]
[TimeControl "5400+30"]

{[%evp 9,74,-56,8,10,32,0,13,10,68,53,55,63,51,21,19,22,33,17,37,25,32,0,2,0,43,45,41,0,0,-23,-16,-91,-99,-100,-96,-113,-95,-98,-107,-128,-132,-149,-119,-117,-111,-104,-115,-188,-195,-237,-150,-165,-45,-42,6,12,10,7,7,7,7,7,7,7,43,43,43]} 1. d4 {[%emt 0:00:04]} d5 {[%emt 0:00:04]} 2. Nf3 {[%emt 0:00:06]} Nf6 {[%emt 0:00:03]} 3. Bf4 {[%emt 0:00:06]} c5 {[%emt 0:00:36]} 4. e3 {[%emt 0:00:36]} Nc6 {[%emt 0:00:15]} 5. Bb5 {[%emt 0:04:19]} e6 {[%emt 0:02:46]} ({Better is} 5... Qa5+ $1 $15 6. Nc3 Bd7) 6. O-O {[%emt 0:01:59] D02: 1 d4 d5 2 Nf3 sidelines, including 2...Nf6 3 g3 and 2...Nf6 3 Bf4.} Qb6 {[%emt 0:00:59]} 7. Nc3 {[%emt 0:02:41]} cxd4 $146 {[%emt 0:06:58]} (7... Bd7 8. Be2 cxd4 9. exd4 Rc8 10. Rb1 Be7 11. h3 O-O 12. a3 a6 13. Bd3 Na5 {1-0 Nassr,A (2263)-Miswadah,B (1928) Arab-ch Dubai 2018 (2)}) 8. exd4 {[%emt 0:01:03] The position is equal.} (8. Qxd4 {simplifies} Qxd4 9. exd4 Bd7 10. a3) 8... a6 {[%emt 0:01:08]} (8... Bd7 $11) 9. Bxc6+ $14 {[%emt 0:04:08]} Qxc6 {[%emt 0:00:04]} 10. Ne5 {[%emt 0:02:25]} Qb6 {[%emt 0:00:05][%cal Of8d6]} 11. Qd3 {[%emt 0:13:34]} Be7 {[%emt 0:02:03]} 12. a4 {[%emt 0:09:57][%cal Ba2a4,Ba4a5][%mdl 32]} O-O {[%emt 0:03:41][%cal Of6h5]} 13. Rfe1 {[%emt 0:03:17][%cal Bf1e1,Be1e3,Be3h3,Bh3h6][%mdl 32]} Nd7 {[%emt 0:06:44]} 14. a5 {[%emt 0:13:08]} Qd8 {[%emt 0:00:05]} 15. Re3 {[%emt 0:04:19]} Nxe5 {[%emt 0:07:17]} 16. dxe5 {[%emt 0:00:55]} Bd7 {[%emt 0:06:19]} 17. Rh3 {[%emt 0:05:48][%csl Gh3][%cal Rd3h7]} g6 $1 {[%emt 0:00:06] Black is weak on the dark squares} 18. Qg3 {[%emt 0:08:10]} Rc8 {[%emt 0:12:29]} 19. Rh6 {[%emt 0:03:24]} Rc4 {[%emt 0:03:33][%cal Oc4f4]} 20. Ne2 {[%emt 0:00:22]} (20. Bd2 $1 $11) 20... Re4 {[%emt 0:17:22]} (20... Rxc2 21. Nd4 Rxb2 22. Qh3 $16) 21. Be3 {[%emt 0:08:51]} Qc7 {[%emt 0:11:22][%csl LRc2,LRe5]} 22. Nc3 {[%emt 0:02:42]} Rb4 $36 {[%emt 0:03:38][%cal Od5d4][%mdl 2048] Strongly threatening ...d4!. Black is in control.} 23. Bb6 {[%emt 0:00:42]} Qc4 {[%emt 0:00:30]} 24. Qh3 {[%emt 0:01:51] Strongly threatening Na2.} Qg4 $1 {[%emt 0:01:29]} (24... Rxb2 $2 25. Rxh7 $18) 25. b3 {[%emt 0:00:50]} Qxh3 {[%emt 0:01:01]} 26. Rxh3 {[%emt 0:00:06]} Rc8 {[%emt 0:00:06]} 27. Rd3 {[%emt 0:01:32]} f6 {[%emt 0:02:14]} 28. Rad1 {[%emt 0:05:13]} (28. Na2 $17 Re4 29. exf6 Bxf6 30. c3) 28... fxe5 $19 {[%emt 0:06:16]} 29. g3 {[%emt 0:00:27]} e4 {[%emt 0:01:33]} 30. Rxd5 {[%emt 0:00:21] [#]} exd5 {[%emt 0:00:04]} (30... Be8 $1 $19 31. Rd8 Bxd8 (31... Rxc3 $2 {loses.} 32. Rxe8+ Kf7 33. Rh8 $18) 32. Rxd8 Rxd8 (32... Rxc3 33. Rxe8+ Kf7 34. Rb8 $17) 33. Bxd8 Rd4) 31. Nxd5 $15 {[%emt 0:00:07] [#]} Bg4 {[%emt 0:01:53]} 32. Nxe7+ $11 {[%emt 0:00:18]} Kg7 {[%emt 0:00:26]} 33. Nxc8 {[%emt 0:00:28]} Bxd1 {[%emt 0:00:07]} 34. Bc5 {[%emt 0:00:10]} Rb5 {[%emt 0:00:23]} 35. b4 {[%emt 0:00:18]} Bxc2 {[%emt 0:00:24][%cal Ob5c5]} 36. Nd6 {[%emt 0:00:17]} Kf6 {[%emt 0:00:46][%cal Ob5c5]} 37. Nxb5 {[%emt 0:00:28]} axb5 {[%emt 0:00:03] Weighted Error Value: White=0.15 (very precise) /Black=0.19 (very precise)   Mistake:       	White=2     	Black=3      Inaccurate:     	White=4     	Black=3      OK:         	White=8     	Black=17     Best:        	White=5     	---        Strong:       	---       	Black=2} 1/2-1/2